fUSD/lending_fUSD_20250618
["ID","MTS","AMOUNT","RATE_DAILY","PERIOD"]
[366366296,1750216264301,-490.0,0.00016767,2]
[366366297,1750216264310,-1374.38,0.00016767,2]
[366366298,1750216264320,-313.47252347,0.00016767,2]
[366366299,1750216264330,-490.0,0.00016767,2]
[366366300,1750216264340,-528.95,0.00016767,2]
[366366301,1750216264349,-614.9,0.00016767,2]
[366366302,1750216264359,-684.62,0.00016767,2]
[366366303,1750216264372,-490.0,0.00016767,2]
[366366304,1750216264382,-1834.1,0.00016767,2]
[366366305,1750216264392,-490.0,0.00016767,2]
[366366306,1750216264401,-490.0,0.00016767,2]
[366366307,1750216264412,-1695.62,0.00016767,2]
[366366308,1750216264422,-492.02,0.00016767,2]
[366366309,1750216264432,-1441.32,0.00016767,2]
[366366310,1750216264442,-490.0,0.00016767,2]
[366366311,1750216264452,-490.0,0.00016767,2]
[366366312,1750216264461,-534.39,0.00016767,2]
[366366313,1750216264471,-488.27955624,0.00016767,2]
[366366314,1750216264480,-490.0,0.00016767,2]
[366366315,1750216264489,-718.91,0.00016767,2]
[366366316,1750216264499,-682.49,0.00016767,2]
[366366317,1750216264507,-1281.16,0.00016767,2]
[366366318,1750216264516,-490.0,0.00016767,2]
[366366319,1750216264526,-2270.6,0.00016767,2]
[366366320,1750216264536,-490.0,0.00016767,2]
[366366321,1750216264545,-1361.78,0.00016767,2]
[366366322,1750216264554,-720.31,0.00016767,2]
[366366323,1750216264564,-741.81,0.00016767,2]
[366366324,1750216264574,-2640.8,0.00016767,2]
[366366325,1750216264583,-490.0,0.00016767,2]
[366366326,1750216264592,-628.62,0.00016767,2]
[366366327,1750216264602,-1987.64,0.00016767,2]
[366366328,1750216264611,-565.49,0.00016767,2]
[366366329,1750216264620,-490.0,0.00016767,2]
[366366330,1750216264629,-502.24,0.00016767,2]
[366366331,1750216264638,-1519.52,0.00016767,2]
[366366332,1750216264647,-495.99,0.00016767,2]
[366366333,1750216264657,-614.59,0.00016767,2]
[366366334,1750216264666,-1656.05,0.00016767,2]
[366366335,1750216264675,-1672.05,0.00016767,2]
[366366336,1750216264684,-490.0,0.00016767,2]
[366366337,1750216264694,-490.0,0.00016767,2]
[366366338,1750216264702,-2032.86,0.00016767,2]
[366366339,1750216264712,-2649.19,0.00016767,2]
[366366340,1750216264721,-490.0,0.00016767,2]
[366366341,1750216264730,-490.0,0.00016767,2]
[366366342,1750216264739,-895.85,0.00016767,2]
[366366343,1750216264749,-490.0,0.00016767,2]
[366366344,1750216264758,-490.0,0.00016767,2]
[366366345,1750216264768,-490.0,0.00016767,2]
[366366346,1750216264777,-793.89,0.00016767,2]
[366366347,1750216264786,-1208.61,0.00016767,2]
[366366348,1750216264795,-490.0,0.00016767,2]
[366366349,1750216264804,-1000.0,0.00016767,2]
[366366350,1750216264813,-490.0,0.00016767,2]
[366366351,1750216264822,-1899.28,0.00016767,2]
[366366352,1750216264831,-946.58,0.00016767,2]
[366366353,1750216264840,-490.0,0.00016767,2]
[366366354,1750216264849,-490.0,0.00016767,2]
[366366355,1750216264859,-490.0,0.00016767,2]
[366366356,1750216264866,-490.0,0.00016767,2]
[366366357,1750216264874,-569.13,0.00016767,2]
[366366358,1750216264883,-1137.29,0.00016767,2]
[366366359,1750216264893,-490.0,0.00016767,2]
[366366360,1750216264902,-576.04,0.00016767,2]
[366366361,1750216264913,-490.0,0.00016767,2]
[366366362,1750216264923,-490.63,0.00016767,2]
[366366363,1750216264934,-490.0,0.00016767,2]
[366366364,1750216264945,-616.34,0.00016767,2]
[366366365,1750216264955,-539.66,0.00016767,2]
[366366366,1750216264966,-1365.0,0.00016767,2]
[366366367,1750216264976,-442.76765793,0.00016767,2]
[366366368,1750216264987,-490.0,0.00016767,2]
[366366369,1750216264997,-1553.22,0.00016767,2]
[366366370,1750216265011,-793.19,0.00016767,2]
[366366371,1750216265022,-2282.04,0.00016767,2]
[366366372,1750216265033,-1122.84,0.00016767,2]
[366366373,1750216265043,-493.42,0.00016767,2]
[366366374,1750216265053,-1800.52,0.00016767,2]
[366366375,1750216265063,-705.15,0.00016767,2]
[366366376,1750216265074,-21611.81,0.00016767,2]
[366366377,1750216265083,-490.0,0.00016767,2]
[366366378,1750216265093,-490.0,0.00016767,2]
[366366379,1750216265103,-490.0,0.00016767,2]
[366366380,1750216265113,-1095.24,0.00016767,2]
[366366381,1750216265123,-1719.09,0.00016767,2]
[366366382,1750216265135,-490.0,0.00016767,2]
[366366383,1750216265145,-490.0,0.00016767,2]
[366366384,1750216265155,-1058.99,0.00016767,2]
[366366385,1750216265165,-490.0,0.00016767,2]
[366366386,1750216265175,-908.79,0.00016767,2]
[366366387,1750216265185,-841.68,0.00016767,2]
[366366388,1750216265194,-490.0,0.00016767,2]
[366366389,1750216265204,-721.22,0.00016767,2]
[366366390,1750216265214,-584.12,0.00016767,2]
[366366391,1750216265225,-490.0,0.00016767,2]
[366366392,1750216265234,-6203.59,0.00016767,2]
[366366393,1750216265245,-1710.1,0.00016767,2]
[366366394,1750216265258,-577.22635076,0.00016767,2]
[366366395,1750216265268,-490.0,0.00016767,2]
[366366396,1750216265278,-4948.11,0.00016767,2]
[366366397,1750216265288,-1328.84,0.00016767,2]
[366366398,1750216265298,-490.0,0.00016767,2]
[366366399,1750216265307,-3413.49,0.00016767,2]
[366366400,1750216265318,-490.0,0.00016767,2]
[366366401,1750216265327,-2114.15,0.00016767,2]
[366366402,1750216265338,-604.86,0.00016767,2]
[366366403,1750216265347,-1378.75,0.00016767,2]
[366366404,1750216265357,-761.95,0.00016767,2]
[366366405,1750216265368,-490.0,0.00016767,2]
[366366406,1750216265379,-490.0,0.00016767,2]
[366366407,1750216265389,-1142.76,0.00016767,2]
[366366408,1750216265399,-608.15,0.00016767,2]
[366366409,1750216265409,-490.0,0.00016767,2]
[366366410,1750216265420,-971.38,0.00016767,2]
[366366411,1750216265429,-693.17,0.00016767,2]
[366366412,1750216265440,-1232.19,0.00016767,2]
[366366413,1750216265450,-3890.87,0.00016767,2]
[366366414,1750216265460,-490.0,0.00016767,2]
[366366415,1750216265470,-490.0,0.00016767,2]
[366366416,1750216265480,-490.0,0.00016767,2]
[366366417,1750216265490,-490.0,0.00016767,2]
[366366418,1750216265500,-2166.48,0.00016767,2]
[366366419,1750216265510,-2877.98,0.00016767,2]
[366366420,1750216265520,-490.0,0.00016767,2]
[366366421,1750216265529,-1482.11,0.00016767,2]
[366366422,1750216265539,-1429.85,0.00016767,2]
[366366423,1750216265548,-490.0,0.00016767,2]
[366366424,1750216265559,-2523.25,0.00016767,2]
[366366425,1750216265569,-1163.59,0.00016767,2]
[366366426,1750216265578,-1796.16,0.00016767,2]
[366366427,1750216265588,-8180.45,0.00016767,2]
[366366428,1750216265598,-594.76,0.00016767,2]
[366366429,1750216265608,-6971.86,0.00016767,2]
[366366430,1750216265618,-522.11,0.00016767,2]
[366366431,1750216265627,-619.96,0.00016767,2]
[366366432,1750216265637,-3009.37,0.00016767,2]
[366366433,1750216265647,-2580.71,0.00016767,2]
[366366434,1750216265657,-3648.97,0.00016767,2]
[366366435,1750216265666,-1307.49,0.00016767,2]
[366366436,1750216265676,-1942.9,0.00016767,2]
[366366437,1750216265685,-1286.27,0.00016767,2]
[366366438,1750216265695,-612.2732131,0.00016767,2]
[366366439,1750216265704,-3605.22,0.00016767,2]
[366366440,1750216265714,-876.51,0.00016767,2]
[366366441,1750216265723,-809.73,0.00016767,2]
[366366442,1750216265733,-1781.59,0.00016767,2]
[366366443,1750216265743,-490.0,0.00016767,2]
[366366444,1750216265754,-490.0,0.00016767,2]
[366366445,1750216265763,-2146.54,0.00016767,2]
[366366446,1750216265773,-867.36,0.00016767,2]
[366366447,1750216265782,-2203.13,0.00016767,2]
[366366448,1750216265792,-490.0,0.00016767,2]
[366366449,1750216265801,-9780.84,0.00016767,2]
[366366450,1750216265810,-490.0,0.00016767,2]
[366366451,1750216265819,-3655.92,0.00016767,2]
[366366452,1750216265828,-490.0,0.00016767,2]
[366366453,1750216265837,-490.0,0.00016767,2]
[366366454,1750216265846,-494.62,0.00016767,2]
[366366455,1750216265854,-2691.97,0.00016767,2]
[366366456,1750216265863,-490.0,0.00016767,2]
[366366457,1750216265872,-2584.84,0.00016767,2]
[366366458,1750216265881,-1785.16,0.00016767,2]
[366366459,1750216265889,-2767.56,0.00016767,2]
[366366460,1750216265898,-637.63,0.00016767,2]
[366366461,1750216265908,-2434.96,0.00016767,2]
[366366462,1750216265918,-490.0,0.00016767,2]
[366366463,1750216265927,-1941.93,0.00016767,2]
[366366464,1750216265937,-5601.07,0.00016767,2]
[366366465,1750216265946,-490.0,0.00016767,2]
[366366466,1750216265955,-4817.77,0.00016767,2]
[366366467,1750216265965,-1367.29,0.00016767,2]
[366366468,1750216265974,-906.39,0.00016767,2]
[366366469,1750216265983,-490.0,0.00016767,2]
[366366470,1750216265993,-490.0,0.00016767,2]
[366366471,1750216266004,-490.0,0.00016767,2]
[366366472,1750216266014,-1452.89,0.00016767,2]
[366366473,1750216266023,-1288.94,0.00016767,2]
[366366474,1750216266038,-1798.02,0.00016767,2]
[366366475,1750216266047,-591.96,0.00016767,2]
[366366476,1750216266057,-490.0,0.00016767,2]
[366366477,1750216266067,-1994.81,0.00016767,2]
[366366478,1750216266077,-1881.73,0.00016767,2]
[366366479,1750216266087,-2992.51,0.00016767,2]
[366366480,1750216266097,-3309.83,0.00016767,2]
[366366481,1750216266106,-490.0,0.00016767,2]
[366366482,1750216266116,-859.4,0.00016767,2]
[366366483,1750216266125,-4827.1,0.00016767,2]
[366366484,1750216266135,-490.0,0.00016767,2]
[366366485,1750216266144,-529.24,0.00016767,2]
[366366486,1750216266154,-528.5,0.00016767,2]
[366366487,1750216266164,-490.0,0.00016767,2]
[366366488,1750216266174,-532.76,0.00016767,2]
[366366489,1750216266184,-490.0,0.00016767,2]
[366366490,1750216266194,-944.78,0.00016767,2]
[366366491,1750216266203,-3141.9,0.00016767,2]
[366366492,1750216266213,-2627.85,0.00016767,2]
[366366493,1750216266223,-490.0,0.00016767,2]
[366366494,1750216266233,-1778.99,0.00016767,2]
[366366495,1750216266243,-490.0,0.00016767,2]
[366366496,1750216266253,-490.0,0.00016767,2]
[366366497,1750216266264,-1469.55,0.00016767,2]
[366366498,1750216266273,-490.0,0.00016767,2]
[366366499,1750216266283,-490.0,0.00016767,2]
[366366500,1750216266292,-490.0,0.00016767,2]
[366366501,1750216266302,-490.0,0.00016767,2]
[366366502,1750216266312,-490.0,0.00016767,2]
[366366503,1750216266321,-490.0,0.00016767,2]
[366366504,1750216266332,-9027.06,0.00016767,2]
[366366505,1750216266342,-1337.54,0.00016767,2]
[366366506,1750216266353,-490.0,0.00016767,2]
[366366507,1750216266365,-1933.02,0.00016767,2]
[366366508,1750216266378,-3951.76,0.00016767,2]
[366366509,1750216266388,-657.84,0.00016767,2]
[366366510,1750216266398,-563.44,0.00016767,2]
[366366511,1750216266408,-1174.92,0.00016767,2]
[366366512,1750216266419,-607.55,0.00016767,2]
[366366513,1750216266429,-2144.21,0.00016767,2]
[366366514,1750216266438,-2582.7,0.00016767,2]
[366366515,1750216266449,-490.0,0.00016767,2]
[366366516,1750216266459,-953.29,0.00016767,2]
[366366517,1750216266469,-1098.2,0.00016767,2]
[366366518,1750216266479,-490.0,0.00016767,2]
[366366519,1750216266490,-1082.59,0.00016767,2]
[366366520,1750216266500,-1518.31,0.00016767,2]
[366366521,1750216266510,-490.0,0.00016767,2]
[366366522,1750216266520,-1009.81,0.00016767,2]
[366366523,1750216266530,-490.0,0.00016767,2]
[366366524,1750216266551,-490.0,0.00016767,2]
[366366525,1750216266561,-6825.02,0.00016767,2]
[366366526,1750216266572,-490.0,0.00016767,2]
[366366527,1750216266584,-1801.85,0.00016767,2]
[366366528,1750216266596,-490.0,0.00016767,2]
[366366529,1750216266612,-10765.7,0.00016767,2]
[366366530,1750216266624,-638.34,0.00016767,2]
[366366531,1750216266635,-490.0,0.00016767,2]
[366366532,1750216266647,-490.0,0.00016767,2]
[366366533,1750216266659,-759.85,0.00016767,2]
[366366534,1750216266670,-2505.59,0.00016767,2]
[366366535,1750216266681,-810.87,0.00016767,2]
[366366536,1750216266691,-1923.46,0.00016767,2]
[366366537,1750216266703,-348.64091862,0.00016767,2]
[366366538,1750216266715,-2500.58,0.00016767,2]
[366366539,1750216266727,-490.0,0.00016767,2]
[366366540,1750216266737,-719.01,0.00016767,2]
[366366541,1750216266747,-743.12,0.00016767,2]
[366366542,1750216266757,-490.0,0.00016767,2]
[366366543,1750216266769,-1769.01,0.00016767,2]
[366366544,1750216266778,-490.0,0.00016767,2]
[366366545,1750216266788,-490.0,0.00016767,2]
[366366546,1750216266797,-13578.99,0.00016767,2]
[366366547,1750216266809,-1993.52,0.00016767,2]
[366366548,1750216266822,-696.43,0.00016767,2]
[366366549,1750216266831,-490.0,0.00016767,2]
[366366550,1750216266841,-1191.27,0.00016767,2]
[366366551,1750216266852,-736.5,0.00016767,2]
[366366552,1750216266862,-5505.13,0.00016767,2]
[366366553,1750216266874,-2141.73,0.00016767,2]
[366366554,1750216266886,-490.0,0.00016767,2]
[366366555,1750216266897,-624.27,0.00016767,2]
[366366556,1750216266907,-2617.23,0.00016767,2]
[366366557,1750216266918,-8752.39,0.00016767,2]
[366366558,1750216266930,-1483.51,0.00016767,2]
[366366559,1750216266942,-6503.78,0.00016767,2]
[366366560,1750216266952,-490.0,0.00016767,2]
[366366561,1750216266961,-1324.42,0.00016767,2]
[366366562,1750216266970,-568.88,0.00016767,2]
[366366563,1750216266979,-756.85,0.00016767,2]
[366366564,1750216266987,-467.32361705,0.00016767,2]
[366366565,1750216266996,-298.17435014,0.00016767,2]
[366366566,1750216267007,-957.99,0.00016767,2]
[366366567,1750216267017,-7521.83,0.00016767,2]
[366366568,1750216267026,-490.0,0.00016767,2]
[366366569,1750216267035,-4317.02,0.00016767,2]
[366366570,1750216267045,-490.0,0.00016767,2]
[366366571,1750216267054,-2409.03,0.00016767,2]
[366366572,1750216267064,-490.0,0.00016767,2]
[366366573,1750216267073,-634.62,0.00016767,2]
[366366574,1750216267082,-490.0,0.00016767,2]
[366366575,1750216267092,-762.69,0.00016767,2]
[366366576,1750216267279,-1304.24,0.00016767,2]
[366366577,1750216267297,-770.27,0.00016767,2]
[366366578,1750216267306,-490.0,0.00016767,2]
[366366579,1750216267315,-1998.73,0.00016767,2]
[366366580,1750216267324,-2576.6,0.00016767,2]
[366366581,1750216267333,-3942.43,0.00016767,2]
[366366582,1750216267342,-1175.69,0.00016767,2]
[366366583,1750216267351,-431.33537977,0.00016767,2]
[366366584,1750216267360,-3132.22,0.00016767,2]
[366366585,1750216267374,-490.0,0.00016767,2]
[366366586,1750216267383,-1445.66,0.00016767,2]
[366366587,1750216267393,-490.0,0.00016767,2]
[366366588,1750216267402,-1132.72,0.00016767,2]
[366366589,1750216267411,-697.82,0.00016767,2]
[366366590,1750216267420,-490.0,0.00016767,2]
[366366591,1750216267429,-2222.64,0.00016767,2]
[366366592,1750216267440,-490.0,0.00016767,2]
[366366593,1750216267449,-911.01,0.00016767,2]
[366366594,1750216267459,-513.17574363,0.00016767,2]
[366366595,1750216267468,-3683.6,0.00016767,2]
[366366596,1750216267478,-1921.68,0.00016767,2]
[366366597,1750216267487,-844.89,0.00016767,2]
[366366598,1750216267496,-7980.77,0.00016767,2]
[366366599,1750216267506,-490.0,0.00016767,2]
[366366600,1750216267516,-1224.19,0.00016767,2]
[366366601,1750216267526,-490.0,0.00016767,2]
[366366602,1750216267535,-1327.25,0.00016767,2]
[366366603,1750216267545,-355.01971392,0.00016767,2]
[366366604,1750216267555,-2566.07,0.00016767,2]
[366366605,1750216267564,-5171.47,0.00016767,2]
[366366606,1750216267574,-4070.52,0.00016767,2]
[366366607,1750216267584,-1030.8,0.00016767,2]
[366366608,1750216267594,-622.96,0.00016767,2]
[366366609,1750216267604,-490.0,0.00016767,2]
[366366610,1750216267614,-1389.74,0.00016767,2]
[366366611,1750216267624,-1513.16,0.00016767,2]
[366366612,1750216267634,-725.82,0.00016767,2]
[366366613,1750216267644,-606.33,0.00016767,2]
[366366614,1750216267654,-6156.39,0.00016767,2]
[366366615,1750216267665,-18583.53,0.00016767,2]
[366366616,1750216267675,-490.0,0.00016767,2]
[366366617,1750216267684,-4696.22,0.00016767,2]
[366366618,1750216267694,-1372.17,0.00016767,2]
[366366619,1750216267703,-1365.98,0.00016767,2]
[366366620,1750216267712,-490.0,0.00016767,2]
[366366621,1750216267722,-1192.6,0.00016767,2]
[366366622,1750216267731,-21909.93,0.00016767,2]
[366366623,1750216267741,-490.0,0.00016767,2]
[366366624,1750216267750,-490.0,0.00016767,2]
[366366625,1750216267759,-490.0,0.00016767,2]
[366366626,1750216267769,-1806.83,0.00016767,2]
[366366627,1750216267778,-8066.04,0.00016767,2]
[366366628,1750216267788,-2407.29,0.00016767,2]
[366366629,1750216267797,-490.0,0.00016767,2]
[366366630,1750216267806,-490.0,0.00016767,2]
[366366631,1750216267816,-490.0,0.00016767,2]
[366366632,1750216267825,-462.37675867,0.00016767,2]
[366366633,1750216267834,-490.0,0.00016767,2]
[366366634,1750216267844,-1980.86,0.00016767,2]
[366366635,1750216267853,-490.0,0.00016767,2]
[366366636,1750216267861,-2561.48,0.00016767,2]
[366366637,1750216267870,-964.49,0.00016767,2]
[366366638,1750216267880,-490.0,0.00016767,2]
[366366639,1750216267889,-611.37,0.00016767,2]
[366366640,1750216267899,-2225.7,0.00016767,2]
[366366641,1750216267908,-846.17,0.00016767,2]
[366366642,1750216267919,-1508.39,0.00016767,2]
[366366643,1750216267928,-490.0,0.00016767,2]
[366366644,1750216267937,-490.0,0.00016767,2]
[366366645,1750216267946,-3945.85,0.00016767,2]
[366366646,1750216267956,-1338.11,0.00016767,2]
[366366647,1750216267965,-490.0,0.00016767,2]
[366366648,1750216267975,-490.0,0.00016767,2]
[366366649,1750216267984,-2428.21,0.00016767,2]
[366366650,1750216267993,-490.0,0.00016767,2]
[366366651,1750216268002,-6830.56,0.00016767,2]
[366366652,1750216268010,-1465.97,0.00016767,2]
[366366653,1750216268019,-490.0,0.00016767,2]
[366366654,1750216268028,-1343.78,0.00016767,2]
[366366655,1750216268037,-560.02,0.00016767,2]
[366366656,1750216268047,-490.0,0.00016767,2]
[366366657,1750216268056,-490.0,0.00016767,2]
[366366658,1750216268066,-2744.77,0.00016767,2]
[366366659,1750216268076,-631.24,0.00016767,2]
[366366660,1750216268086,-1590.49,0.00016767,2]
[366366661,1750216268095,-490.0,0.00016767,2]
[366366662,1750216268105,-490.0,0.00016767,2]
[366366663,1750216268116,-1256.3,0.00016767,2]
[366366664,1750216268126,-1150.72,0.00016767,2]
[366366665,1750216268136,-1628.33,0.00016767,2]
[366366666,1750216268146,-490.0,0.00016767,2]
[366366667,1750216268156,-1238.51,0.00016767,2]
[366366668,1750216268166,-490.0,0.00016767,2]
[366366669,1750216268176,-490.0,0.00016767,2]
[366366670,1750216268186,-1241.8,0.00016767,2]
[366366671,1750216268196,-574.71,0.00016767,2]
[366366672,1750216268206,-601.14,0.00016767,2]
[366366673,1750216268215,-1249.22,0.00016767,2]
[366366674,1750216268225,-4716.11,0.00016767,2]
[366366675,1750216268235,-4861.67,0.00016767,2]
[366366676,1750216268245,-490.0,0.00016767,2]
[366366677,1750216268255,-14623.08,0.00016767,2]
[366366678,1750216268265,-578.41,0.00016767,2]
[366366679,1750216268275,-1580.54,0.00016767,2]
[366366680,1750216268285,-2850.53,0.00016767,2]
[366366681,1750216268295,-4933.85,0.00016767,2]
[366366682,1750216268305,-580.96,0.00016767,2]
[366366683,1750216268314,-490.0,0.00016767,2]
[366366684,1750216268324,-547.06,0.00016767,2]
[366366685,1750216268333,-8620.59,0.00016767,2]
[366366686,1750216268343,-3409.44,0.00016767,2]
[366366687,1750216268352,-490.0,0.00016767,2]
[366366688,1750216268362,-1433.43,0.00016767,2]
[366366689,1750216268374,-1508.54,0.00016767,2]
[366366690,1750216268383,-1313.33,0.00016767,2]
[366366691,1750216268393,-1785.75,0.00016767,2]
[366366692,1750216268403,-544.34,0.00016767,2]
[366366693,1750216268414,-1784.8,0.00016767,2]
[366366694,1750216268424,-846.50412756,0.00016772,2]
[366366695,1750216268433,-150.0,0.0001678,2]
[366366696,1750216268445,-150.0,0.0001679,2]
[366366697,1750216268455,-300.0,0.000168,3]
[366366698,1750216268465,-300.0,0.000168,3]
[366366699,1750216268475,-568.4734369,0.000168,2]
[366366700,1750216268485,-150.0,0.00016817,2]
[366366701,1750216268494,-31759.27340935,0.0001683,2]
[366366702,1750216268504,-1534.8868716,0.0001683,2]
[366366703,1750216268514,-13282.68675954,0.00016831,2]
[366366704,1750216268523,-846.50412756,0.00016831,2]
[366366705,1750216268533,-7932.27206127,0.00016831,2]
[366366706,1750216268543,-268.96923273,0.00016831,2]
[366366707,1750216268553,-531.5404764,0.00016831,2]
[366366708,1750216268563,-150.0,0.00016862,2]
[366366709,1750216268573,-1675.188967,0.00016866,2]
[366366710,1750216268583,-420.0,0.00016871,2]
[366366711,1750216268593,-199.0,0.00016873,2]
[366366712,1750216268603,-199.0,0.00016895,2]
[366366713,1750216268613,-2234.12,0.00016899,2]
[366366714,1750216268623,-4670.3,0.00016899,2]
[366366715,1750216268633,-1000.0,0.000169,2]
[366366716,1750216268644,-1000.0,0.000169,2]
[366366717,1750216268654,-1000.0,0.000169,2]
[366366718,1750216268664,-1000.0,0.000169,2]
[366366719,1750216268674,-146524.22049899,0.000169,2]
[366366720,1750216268684,-1000.0,0.000169,2]
[366366721,1750216268694,-1000.0,0.000169,2]
[366366722,1750216268704,-1000.0,0.000169,2]
[366366723,1750216268714,-1000.0,0.000169,2]
[366366724,1750216268724,-1000.0,0.000169,2]
[366366725,1750216268734,-1000.0,0.000169,2]
[366366726,1750216268744,-300.0,0.000169,5]
[366366727,1750216268754,-300.0,0.000169,5]
[366366728,1750216268764,-209.5,0.000169,2]
[366366729,1750216268774,-376.0,0.000169,2]
[366366730,1750216268785,-1580.0,0.00016915,2]
[366366731,1750216268796,-13282.6867595,0.00016922,2]
[366366732,1750216268806,-1000.0,0.00016924,2]
[366366733,1750216268816,-1000.0,0.00016924,2]
[366366734,1750216268825,-1000.0,0.00016924,2]
[366366735,1750216268835,-1000.0,0.00016924,2]
[366366736,1750216268844,-1000.0,0.00016924,2]
[366366737,1750216268854,-1000.0,0.00016924,2]
[366366738,1750216268863,-1000.0,0.00016924,2]
[366366739,1750216268873,-1000.0,0.00016924,2]
[366366740,1750216268882,-1000.0,0.00016924,2]
[366366741,1750216268892,-1000.0,0.00016924,2]
[366366742,1750216268902,-1000.0,0.00016924,2]
[366366743,1750216268911,-1000.0,0.00016924,2]
[366366744,1750216268921,-1000.0,0.00016924,2]
[366366745,1750216268933,-1000.0,0.00016924,2]
[366366746,1750216268942,-1000.0,0.00016924,2]
[366366747,1750216268952,-1000.0,0.00016924,2]
[366366748,1750216268961,-1000.0,0.00016924,2]
[366366749,1750216268971,-1000.0,0.00016924,2]
[366366750,1750216268981,-1000.0,0.00016924,2]
[366366751,1750216268990,-1000.0,0.00016924,2]
[366366752,1750216269000,-300.0,0.00016924,2]
[366366753,1750216269010,-2234.12,0.0001693,2]
[366366754,1750216269020,-2234.12,0.0001693,2]
[366366755,1750216269030,-2234.12,0.0001693,2]
[366366756,1750216269039,-2234.12,0.0001693,2]
[366366757,1750216269049,-2234.12,0.0001693,2]
[366366758,1750216269059,-2234.19654069,0.0001693,2]
[366366759,1750216269068,-4670.3,0.0001693,2]
[366366760,1750216269078,-4670.3,0.0001693,2]
[366366761,1750216269088,-4670.3,0.0001693,2]
[366366762,1750216269098,-4670.3,0.0001693,2]
[366366763,1750216269108,-4670.3,0.0001693,2]
[366366764,1750216269117,-4670.3,0.0001693,2]
[366366765,1750216269127,-4670.3,0.0001693,2]
[366366766,1750216269136,-4670.30079498,0.0001693,2]
[366366767,1750216269145,-300.0,0.0001693,2]
[366366768,1750216269155,-334.96789519,0.0001693,2]
[366366769,1750216269165,-300.0,0.0001693,2]
[366366770,1750216269175,-319.14490943,0.0001693,2]
[366366771,1750216269185,-155.44894,0.00016931,2]
[366366772,1750216269195,-156.184555,0.00016931,2]
[366366773,1750216269206,-490.0,0.00016931,2]
[366366774,1750216269215,-2646.897704,0.00016931,2]
[366366775,1750216269225,-490.0,0.00016931,2]
[366366776,1750216269235,-490.0,0.00016931,2]
[366366777,1750216269244,-490.0,0.00016931,2]
[366366778,1750216269253,-490.0,0.00016931,2]
[366366779,1750216269263,-490.0,0.00016931,2]
[366366780,1750216269273,-490.0,0.00016931,2]
[366366781,1750216269282,-490.0,0.00016931,2]
[366366782,1750216269293,-490.0,0.00016931,2]
[366366783,1750216269302,-490.0,0.00016931,2]
[366366784,1750216269312,-490.0,0.00016931,2]
[366366785,1750216269322,-927.72,0.00016931,2]
[366366786,1750216269331,-490.0,0.00016931,2]
[366366787,1750216269341,-490.0,0.00016931,2]
[366366788,1750216269351,-490.0,0.00016931,2]
[366366789,1750216269361,-705.0,0.00016931,2]
[366366790,1750216269375,-490.0,0.00016931,2]
[366366791,1750216269385,-490.0,0.00016931,2]
[366366792,1750216269395,-490.0,0.00016931,2]
[366366793,1750216269405,-490.0,0.00016931,2]
[366366794,1750216269417,-490.0,0.00016931,2]
[366366795,1750216269427,-193.45569526,0.00016931,2]